fUST/lending_fUST_20251102
["ID","MTS","AMOUNT","RATE_DAILY","PERIOD"]
[392841837,1762033853581,-500.0,0.00036986,8]
[392841838,1762033853591,-1246.38,0.00036986,8]
[392841839,1762033853600,-500.0,0.00036986,8]
[392841840,1762033853610,-1246.38,0.00036986,8]
[392841841,1762033853619,-500.0,0.00036986,8]
[392841842,1762033853629,-1246.38,0.00036986,8]
[392841843,1762033853638,-500.0,0.00036986,8]
[392841844,1762033853647,-500.0,0.00036986,8]
[392841845,1762033853657,-1246.38,0.00036986,8]
[392841846,1762033853671,-500.0,0.00036986,8]
[392841847,1762033853681,-500.0,0.00036986,8]
[392841848,1762033853690,-1246.38,0.00036986,8]
[392841849,1762033853699,-500.0,0.00036986,8]
[392841850,1762033853708,-500.0,0.00036986,8]
[392841851,1762033853718,-500.0,0.00036986,8]
[392841852,1762033853728,-1246.38,0.00036986,8]
[392841853,1762033853737,-500.0,0.00036986,8]
[392841854,1762033853747,-151.0,0.00036986,31]
[392841855,1762033853756,-212.0,0.00036986,8]
[392841856,1762033853766,-500.0,0.00036986,8]
[392841857,1762033853776,-1246.38,0.00036986,8]
[392841858,1762033853786,-608.67290541,0.00036986,8]
[392841859,1762033853795,-500.0,0.00036986,8]
[392841860,1762033853805,-1246.38,0.00036986,8]
[392841861,1762033853815,-1246.38,0.00036986,8]
[392841862,1762033853825,-500.0,0.00036986,8]
[392841863,1762033853835,-1246.38,0.00036986,8]
[392841864,1762033853844,-500.0,0.00036986,8]
[392841865,1762033853854,-500.0,0.00036986,8]
[392841866,1762033853863,-1246.38,0.00036986,8]
[392841867,1762033853873,-500.0,0.00036986,8]
[392841868,1762033853882,-1246.38,0.00036986,8]
[392841869,1762033853892,-500.0,0.00036986,8]
[392841870,1762033853901,-1246.38,0.00036986,8]
[392841871,1762033853911,-500.0,0.00036986,8]
[392841872,1762033853920,-1246.38,0.00036986,8]
[392841873,1762033853929,-500.0,0.00036986,8]
[392841874,1762033853938,-1246.38,0.00036986,8]
[392841875,1762033853948,-500.0,0.00036986,8]
[392841876,1762033853957,-1246.38,0.00036986,8]
[392841877,1762033853967,-500.0,0.00036986,8]
[392841878,1762033853976,-1246.38,0.00036986,8]
[392841879,1762033853985,-500.0,0.00036986,8]
[392841880,1762033853994,-1246.48,0.00036986,8]
[392841881,1762033854003,-500.0,0.00036986,8]
[392841882,1762033854012,-500.0,0.00036986,8]
[392841883,1762033854021,-500.0,0.00036986,8]
[392841884,1762033854030,-500.0,0.00036986,8]
[392841885,1762033854039,-500.0,0.00036986,8]
[392841886,1762033854048,-500.0,0.00036986,8]
[392841887,1762033854057,-500.0,0.00036986,8]
[392841888,1762033854067,-500.0,0.00036986,8]
[392841889,1762033854076,-500.0,0.00036986,8]
[392841890,1762033854085,-500.0,0.00036986,8]
[392841891,1762033854095,-502.42,0.00036986,8]
[392841892,1762033854104,-500.0,0.00036986,8]
[392841893,1762033854113,-500.0,0.00036986,8]
[392841894,1762033854122,-500.0,0.00036986,8]
[392841895,1762033854131,-165.15873046,0.00036986,8]
[392841896,1762033854140,-500.0,0.00036986,8]
[392841897,1762033854149,-500.0,0.00036986,8]
[392841898,1762033854159,-500.0,0.00036986,8]
[392841899,1762033854168,-500.0,0.00036986,8]
[392841900,1762033854177,-500.0,0.00036986,8]
[392841901,1762033854187,-316.70255734,0.00036986,8]
[392841902,1762033854197,-500.0,0.00036986,8]
[392841903,1762033854206,-500.0,0.00036986,8]
[392841904,1762033854215,-313.68,0.00036986,8]
[392841905,1762033854224,-500.0,0.00036986,8]
[392841906,1762033854234,-500.0,0.00036986,8]
[392841907,1762033854243,-505.70255793,0.00036986,8]
[392841908,1762033854252,-500.0,0.00036986,8]
[392841909,1762033854261,-506.27411392,0.00036986,8]
[392841910,1762033854271,-500.0,0.00036986,8]
[392841911,1762033854280,-500.0,0.00036986,8]
[392841912,1762033854289,-500.0,0.00036986,8]
[392841913,1762033854299,-215.85,0.00036986,8]
[392841914,1762033854307,-500.0,0.00036986,8]
[392841915,1762033854317,-500.0,0.00036986,8]
[392841916,1762033854326,-500.0,0.00036986,8]
[392841917,1762033854335,-500.0,0.00036986,8]
[392841918,1762033854403,-500.0,0.00036986,8]
[392841919,1762033854412,-500.0,0.00036986,8]
[392841920,1762033854421,-549.98000004,0.00036986,8]
[392841921,1762033854430,-500.0,0.00036986,8]
[392841922,1762033854440,-500.0,0.00036986,8]
[392841923,1762033854450,-500.0,0.00036986,8]
[392841924,1762033854459,-500.0,0.00036986,8]
[392841925,1762033854468,-500.0,0.00036986,8]
[392841926,1762033854478,-500.0,0.00036986,8]
[392841927,1762033854488,-500.0,0.00036986,8]
[392841928,1762033854497,-500.0,0.00036986,8]
[392841929,1762033854506,-500.0,0.00036986,8]
[392841930,1762033854516,-500.0,0.00036986,8]
[392841931,1762033854525,-500.0,0.00036986,8]
[392841932,1762033854534,-500.0,0.00036986,8]
[392841933,1762033854543,-500.0,0.00036986,8]
[392841934,1762033854552,-500.0,0.00036986,8]
[392841935,1762033854561,-500.0,0.00036986,8]
[392841936,1762033854570,-381.664999,0.00036986,8]
[392841937,1762033854579,-500.0,0.00036986,8]
[392841938,1762033854588,-500.0,0.00036986,8]
[392841939,1762033854596,-500.0,0.00036986,8]
[392841940,1762033854605,-500.0,0.00036986,8]
[392841941,1762033854614,-500.0,0.00036986,8]
[392841942,1762033854624,-500.0,0.00036986,8]
[392841943,1762033854632,-500.0,0.00036986,8]
[392841944,1762033854647,-373.97,0.00036986,8]
[392841945,1762033854656,-500.0,0.00036986,8]
[392841946,1762033854664,-500.0,0.00036986,8]
[392841947,1762033854674,-500.0,0.00036986,8]
[392841948,1762033854683,-500.0,0.00036986,8]
[392841949,1762033854693,-500.0,0.00036986,8]
[392841950,1762033854702,-500.0,0.00036986,8]
[392841951,1762033854712,-512.73,0.00036986,8]
[392841952,1762033854721,-500.0,0.00036986,8]
[392841953,1762033854730,-500.0,0.00036986,8]
[392841954,1762033854740,-298.98148527,0.00036986,8]
[392841955,1762033854749,-500.0,0.00036986,8]
[392841956,1762033854758,-500.0,0.00036986,8]
[392841957,1762033854768,-500.0,0.00036986,8]
[392841958,1762033854777,-506.90681143,0.00036986,8]
[392841959,1762033854786,-500.0,0.00036986,8]
[392841960,1762033854796,-500.0,0.00036986,8]
[392841961,1762033854805,-500.0,0.00036986,8]
[392841962,1762033854814,-500.0,0.00036986,8]
[392841963,1762033854823,-500.0,0.00036986,8]
[392841964,1762033854832,-500.0,0.00036986,8]
[392841965,1762033854841,-500.0,0.00036986,8]
[392841966,1762033854851,-500.0,0.00036986,8]
[392841967,1762033854860,-500.0,0.00036986,8]
[392841968,1762033854871,-500.0,0.00036986,8]
[392841969,1762033854882,-500.0,0.00036986,8]
[392841970,1762033854892,-528.44,0.00036986,8]
[392841971,1762033854901,-500.0,0.00036986,8]
[392841972,1762033854910,-500.0,0.00036986,8]
[392841973,1762033854919,-500.0,0.00036986,8]
[392841974,1762033854928,-500.0,0.00036986,8]
[392841975,1762033854937,-503.76123696,0.00036986,8]
[392841976,1762033854946,-500.0,0.00036986,8]
[392841977,1762033854956,-500.0,0.00036986,8]
[392841978,1762033854966,-500.0,0.00036986,8]
[392841979,1762033854976,-500.0,0.00036986,8]
[392841980,1762033854985,-500.0,0.00036986,8]
[392841981,1762033854994,-500.0,0.00036986,8]
[392841982,1762033855003,-500.0,0.00036986,8]
[392841983,1762033855012,-500.0,0.00036986,8]
[392841984,1762033855021,-500.0,0.00036986,8]
[392841985,1762033855032,-500.0,0.00036986,8]
[392841986,1762033855041,-505.57051061,0.00036986,8]
[392841987,1762033855052,-500.0,0.00036986,8]
[392841988,1762033855061,-500.0,0.00036986,8]
[392841989,1762033855072,-500.0,0.00036986,8]
[392841990,1762033855081,-554.48,0.00036986,8]
[392841991,1762033855091,-500.0,0.00036986,8]
[392841992,1762033855101,-500.0,0.00036986,8]
[392841993,1762033855111,-500.0,0.00036986,8]
[392841994,1762033855123,-625.8647513,0.00036986,8]
[392841995,1762033855133,-500.0,0.00036986,8]
[392841996,1762033855142,-500.0,0.00036986,8]
[392841997,1762033855151,-500.0,0.00036986,8]
[392841998,1762033855160,-500.0,0.00036986,8]
[392841999,1762033855169,-500.0,0.00036986,8]
[392842000,1762033855179,-221.98,0.00036986,8]
[392842001,1762033855188,-500.0,0.00036986,8]
[392842002,1762033855197,-501.8605987,0.00036986,8]
[392842003,1762033855206,-500.0,0.00036986,8]
[392842004,1762033855215,-295.33,0.00036986,8]
[392842005,1762033855224,-424.223187,0.00036986,8]
[392842006,1762033855233,-500.0,0.00036986,8]
[392842007,1762033855242,-500.0,0.00036986,8]
[392842008,1762033855251,-500.0,0.00036986,8]
[392842009,1762033855260,-182.56,0.00036986,8]
[392842010,1762033855270,-619.00562041,0.00036986,8]
[392842011,1762033855280,-500.0,0.00036986,8]
[392842012,1762033855289,-314.54583707,0.00036986,8]
[392842013,1762033855299,-500.0,0.00036986,8]
[392842014,1762033855311,-514.08496062,0.00036986,8]
[392842015,1762033855320,-518.88,0.00036986,8]
[392842016,1762033855329,-518.88,0.00036986,8]
[392842017,1762033855338,-500.0,0.00036986,8]
[392842018,1762033855347,-518.88,0.00036986,8]
[392842019,1762033855356,-518.88,0.00036986,8]
[392842020,1762033855365,-500.0,0.00036986,8]
[392842021,1762033855375,-560.29,0.00036986,8]
[392842022,1762033855386,-500.0,0.00036986,8]
[392842023,1762033855397,-500.0,0.00036986,8]
[392842024,1762033855408,-500.0,0.00036986,8]
[392842025,1762033855419,-518.88,0.00036986,8]
[392842026,1762033855427,-500.0,0.00036986,8]
[392842027,1762033855437,-500.0,0.00036986,8]
[392842028,1762033855446,-518.88,0.00036986,8]
[392842029,1762033855455,-269.64,0.00036986,8]
[392842030,1762033855464,-500.0,0.00036986,8]
[392842031,1762033855474,-518.88,0.00036986,8]
[392842032,1762033855483,-500.0,0.00036986,8]
[392842033,1762033855493,-518.88,0.00036986,8]
[392842034,1762033855503,-500.0,0.00036986,8]
[392842035,1762033855512,-518.88,0.00036986,8]
[392842036,1762033855522,-500.0,0.00036986,8]
[392842037,1762033855531,-518.88,0.00036986,8]
[392842038,1762033855540,-500.0,0.00036986,8]
[392842039,1762033855550,-518.88,0.00036986,8]
[392842040,1762033855559,-518.88,0.00036986,8]
[392842041,1762033855568,-518.88,0.00036986,8]
[392842042,1762033855577,-500.0,0.00036986,8]
[392842043,1762033855585,-518.88,0.00036986,8]
[392842044,1762033855594,-500.0,0.00036986,8]
[392842045,1762033855603,-518.88,0.00036986,8]
[392842046,1762033855612,-500.0,0.00036986,8]
[392842047,1762033855621,-518.88,0.00036986,8]
[392842048,1762033855630,-500.0,0.00036986,8]
[392842049,1762033855692,-518.88,0.00036986,8]
[392842050,1762033855702,-500.0,0.00036986,8]
[392842051,1762033855711,-518.88,0.00036986,8]
[392842052,1762033855720,-398.12722981,0.00036986,8]
[392842056,1762034068619,169.082008,0.0001572,2]
[392842065,1762034507284,5000.0,0.00025,2]
[392842066,1762034530514,5000.0,0.00025,2]
[392842067,1762034538290,0.01,0.00025,2]
[392842068,1762034538313,4999.99,0.00025,2]
[392842089,1762034745862,5000.0,0.0002465,2]
[392842091,1762034804962,513.5391568,0.0002465,2]
[392842093,1762034882328,-5000.0,0.00024912,2]
[392842094,1762034898239,5000.0,0.00024912,2]
[392842095,1762034906025,5000.0,0.00025,2]
[392842096,1762034915186,0.01,0.0002464,2]
[392842097,1762034915208,306.78335909,0.0002464,2]
[392842098,1762034921246,5000.0,0.00025,2]
[392842099,1762034928910,4693.22664091,0.00025,2]
[392842100,1762034928932,306.77335909,0.00025,2]
[392842102,1762034944086,5000.0,0.00025,2]
[392842103,1762034951806,4693.23664091,0.00025,2]
[392842104,1762034951828,306.76335909,0.00025,2]
[392842105,1762034958717,630.15041709,0.00024938,2]
[392842106,1762034967404,5000.0,0.00025,2]
[392842107,1762034968369,676.90779,0.0003023,120]
[392842108,1762034975137,5000.0,0.0002465,2]
[392842109,1762034990041,5000.0,0.0002465,2]
[392842112,1762035012288,0.01,0.0002465,2]
[392842113,1762035012311,4184.18532648,0.0002465,2]
[392842137,1762035032810,-150.0,0.00025038,2]
[392842138,1762035032820,-469.0,0.00025164,2]
[392842139,1762035032829,-150.0,0.00025201,2]
[392842140,1762035032838,-165.0,0.00026,7]
[392842141,1762035032848,-150.0,0.00026401,2]
[392842142,1762035032857,-300.0,0.00027024,2]
[392842143,1762035032866,-144.29271756,0.00027024,2]
[392842144,1762035032877,-155.70728244,0.00027024,2]
[392842145,1762035032886,-300.0,0.00027024,2]
[392842146,1762035032894,-151.0,0.00027025,2]
[392842147,1762035032902,-151.0,0.00027025,2]
[392842148,1762035032911,-151.0,0.00027025,2]
[392842149,1762035032920,-151.0,0.00027025,2]
[392842150,1762035032929,-87.45705282,0.00027025,2]
[392842155,1762035038808,-63.54294718,0.00027025,2]
[392842156,1762035038818,-151.0,0.00027025,2]
[392842157,1762035038830,-151.0,0.00027025,2]
[392842158,1762035038841,-151.0,0.00027025,2]
[392842159,1762035038852,-151.0,0.00027025,2]
[392842160,1762035038862,-151.0,0.00027025,2]
[392842161,1762035038873,-151.0,0.00027025,2]
[392842162,1762035038884,-151.0,0.00027025,2]
[392842163,1762035038895,-151.0,0.00027025,2]
[392842164,1762035038906,-151.0,0.00027025,2]
[392842165,1762035038916,-151.0,0.00027025,2]
[392842166,1762035038927,-151.0,0.00027025,2]
[392842168,1762035038938,-151.0,0.00027025,2]
[392842170,1762035038948,-151.0,0.00027025,2]
[392842171,1762035038959,-151.0,0.00027025,2]
[392842172,1762035038970,-151.0,0.00027025,2]
[392842173,1762035038981,-177.0,0.00027038,2]
[392842174,1762035038992,-5000.0,0.00027041,2]
[392842175,1762035039003,-150.0,0.00027602,2]
[392842176,1762035039013,-150.0,0.00028802,2]
[392842177,1762035039024,-185.73286076,0.00029028,2]
[392842179,1762035039035,-204.0,0.00029038,2]
[392842180,1762035039046,-420.0,0.00029215,2]
[392842182,1762035039056,-263.11628303,0.00029333,2]
[392842184,1762035039067,-150.0,0.00030002,2]
[392842185,1762035039077,-231.0,0.00031038,2]
[392842186,1762035039087,-150.0,0.00031202,2]
[392842187,1762035039098,-613.8433236,0.00031439,2]
[392842188,1762035039108,-587.0,0.00031584,2]
[392842189,1762035039118,-299.223097,0.00032055,2]
[392842190,1762035039128,-208.77936049,0.00032103,2]
[392842191,1762035039138,-157.37,0.00032402,2]
[392842192,1762035039148,-465.14,0.00032938,120]
[392842193,1762035039158,-500.0,0.00032999,2]
[392842194,1762035039168,-1238.0,0.00033,2]
[392842195,1762035039179,-258.0,0.00033038,120]
[392842196,1762035039189,-500.0,0.00033199,8]
[392842197,1762035039199,-3650.04107183,0.00033541,2]
[392842198,1762035039212,-426.08,0.00033541,2]
[392842199,1762035039223,-923.87892817,0.00033541,2]
[392842200,1762035039234,-179.85,0.00033602,2]
[392842201,1762035039244,-77.6164529,0.00034145,2]
[392842202,1762035039256,-504.32018305,0.00034145,2]
[392842203,1762035039272,-241.06336405,0.00034145,2]
[392842204,1762035039282,-403.98447456,0.00034259,2]
[392842205,1762035039291,-160.0,0.00034261,2]
[392842206,1762035039303,-160.0,0.00034261,2]
[392842207,1762035039315,-186.04046776,0.00034364,2]
[392842208,1762035039324,-334.87284198,0.00034364,2]
[392842209,1762035039334,-595.32949685,0.00034364,2]
[392842210,1762035039344,-185.73286076,0.00034547,4]
[392842211,1762035039355,-202.33,0.00034802,2]
[392842212,1762035039366,-160.0,0.0003485,2]
[392842213,1762035039376,-151.0,0.00035,120]
[392842214,1762035039386,-285.0,0.00035038,120]
[392842215,1762035039396,-323.21928186,0.00035268,120]
[392842216,1762035039408,-353.68850814,0.00035268,120]
[392842217,1762035039417,-110.89149186,0.00035398,2]
[392842218,1762035039429,-149.10850814,0.00035398,2]
[392842219,1762035039439,-995.37599462,0.00035677,2]
[392842220,1762035039452,-228.87532894,0.00035677,2]
[392842221,1762035039462,-360.0,0.00035946,2]
[392842222,1762035039472,-1224.25132356,0.00035991,2]
[392842223,1762035039481,-224.81,0.00036002,2]
[392842224,1762035039491,-176.41270907,0.00036172,2]
[392842225,1762035039502,-1047.83861449,0.00036172,2]
[392842226,1762035039513,-400.57193532,0.00036286,2]
[392842227,1762035039527,-1411.8160654,0.00036286,2]
[392842228,1762035039540,-263.11628303,0.00036359,4]
[392842229,1762035039552,-500.0,0.0003641,5]
[392842230,1762035039564,-289.0,0.00036419,2]
[392842231,1762035039577,-1812.38800072,0.00036448,2]
[392842232,1762035039589,-460.0,0.00036494,2]
[392842233,1762035039603,-1224.25132356,0.00036527,2]
[392842234,1762035039613,-374.0,0.00036763,2]
[392842235,1762035039624,-1812.38800072,0.00036791,2]
[392842236,1762035039636,-510.18323506,0.00036885,2]
[392842237,1762035039648,-1224.25132357,0.00036911,2]
[392842238,1762035039660,-1152.0,0.00036914,2]
[392842239,1762035039671,-823.45,0.00036956,10]
[392842240,1762035039682,-686.21,0.00036956,10]
[392842241,1762035039694,-571.84,0.00036956,10]
[392842242,1762035039705,-1000.0,0.00036958,5]
[392842243,1762035039717,-412.57078263,0.00036965,15]
[392842244,1762035039727,-1198.25,0.00036966,3]
[392842245,1762035039739,-599.12,0.00036966,3]
[392842246,1762035039750,-299.56,0.00036966,3]
[392842247,1762035039763,-898.71,0.00036966,3]
[392842248,1762035039774,-33330.16681369,0.00036966,3]
[392842249,1762035039789,-5497.05552206,0.00036966,3]
[392842250,1762035039802,-21749.21767935,0.00036966,3]
[392842251,1762035039814,-4115.64368066,0.00036966,3]
[392842252,1762035039825,-196.37198462,0.00036973,5]
[392842253,1762035039836,-500.0,0.00036973,5]
[392842254,1762035039850,-500.0,0.00036973,5]
[392842255,1762035039862,-500.0,0.00036975,8]
[392842256,1762035039873,-1000.0,0.00036975,120]
[392842257,1762035039884,-25499.37583571,0.00036976,3]
[392842298,1762035040806,-42461.53025719,0.00036976,3]
[392842301,1762035040819,-441.17852304,0.00036976,3]
[392842303,1762035040832,-7399.07766806,0.00036976,3]
[392842315,1762035040928,-518.82147696,0.00036976,3]
[392842317,1762035040943,-1691.91914094,0.00036976,3]
[392842363,1762035043620,-5046.52157186,0.00036976,3]
[392842364,1762035043632,-7806.23554894,0.00036976,3]
[392842365,1762035043642,-6173.46552099,0.00036976,3]
[392842366,1762035043653,-1000.0,0.00036986,7]
[392842367,1762035043663,-1004.75553725,0.00036986,7]
[392842368,1762035043674,-1001.40013897,0.00036986,7]
[392842369,1762035043687,-502.69869264,0.00036986,8]
[392842370,1762035043699,-2611.1285585,0.00036986,2]
[392842371,1762035043712,-502.49213425,0.00036986,8]
[392842372,1762035043723,-502.20050036,0.00036986,8]
[392842373,1762035043735,-501.80124799,0.00036986,8]
[392842374,1762035043745,-625.81061748,0.00036986,8]
[392842375,1762035043755,-1406.4388053,0.00036986,2]
[392842376,1762035043764,-500.0,0.00036986,8]
[392842377,1762035043774,-500.0,0.00036986,8]
[392842378,1762035043784,-500.0,0.00036986,8]
[392842380,1762035043794,-500.0,0.00036986,8]
[392842382,1762035043805,-441.2805566,0.00036986,2]
[392842383,1762035043817,-500.0,0.00036986,8]
[392842384,1762035043827,-506.32961023,0.00036986,8]
[392842385,1762035043837,-522.34,0.00036986,8]
[392842386,1762035043847,-648.79,0.00036986,8]
[392842387,1762035043856,-500.0,0.00036986,8]
[392842388,1762035043866,-500.0,0.00036986,8]
[392842389,1762035043876,-500.0,0.00036986,2]
[392842390,1762035043886,-500.0,0.00036986,2]
[392842391,1762035043897,-500.0,0.00036986,2]
[392842392,1762035043906,-500.0,0.00036986,2]
[392842393,1762035043916,-500.0,0.00036986,2]
[392842394,1762035043927,-500.0,0.00036986,2]
[392842395,1762035043938,-500.0,0.00036986,2]
[392842396,1762035043949,-500.0,0.00036986,2]
[392842397,1762035043960,-500.0,0.00036986,2]
[392842398,1762035043970,-500.0,0.00036986,2]
[392842399,1762035043981,-315.56,0.00036986,2]
[392842400,1762035043992,-500.0,0.00036986,8]
[392842401,1762035044002,-500.0,0.00036986,8]
[392842402,1762035044012,-560.04,0.00036986,8]
[392842403,1762035044022,-500.0,0.00036986,8]
[392842404,1762035044033,-500.0,0.00036986,8]
[392842405,1762035044043,-3442.0707371,0.00036986,2]
[392842406,1762035044053,-500.0,0.00036986,8]
[392842407,1762035044064,-500.0,0.00036986,8]
[392842408,1762035044074,-500.0,0.00036986,8]
[392842409,1762035044084,-500.0,0.00036986,8]
[392842410,1762035044095,-500.0,0.00036986,8]
[392842411,1762035044105,-500.0,0.00036986,8]
[392842412,1762035044115,-500.0,0.00036986,8]
[392842413,1762035044225,-500.0,0.00036986,8]
[392842414,1762035044237,-516.64,0.00036986,8]
[392842415,1762035044246,-500.0,0.00036986,8]
[392842416,1762035044256,-296.0,0.00036986,2]
[392842417,1762035044266,-500.0,0.00036986,8]
[392842418,1762035044276,-500.98748372,0.00036986,8]
[392842419,1762035044285,-3617.4203292,0.00036986,2]
[392842420,1762035044294,-500.0,0.00036986,8]
[392842421,1762035044303,-500.0,0.00036986,8]
[392842422,1762035044312,-501.2980713,0.00036986,8]
[392842423,1762035044322,-501.96091986,0.00036986,8]
[392842424,1762035044331,-500.0,0.00036986,8]
[392842425,1762035044340,-502.74645921,0.00036986,8]
[392842426,1762035044349,-510.29688786,0.00036986,8]
[392842427,1762035044359,-500.0,0.00036986,8]
[392842428,1762035044368,-500.0,0.00036986,8]
[392842429,1762035044377,-500.0,0.00036986,8]
[392842430,1762035044387,-502.34643406,0.00036986,8]
[392842431,1762035044396,-500.0,0.00036986,8]
[392842432,1762035044405,-500.0,0.00036986,8]
[392842433,1762035044414,-500.0,0.00036986,8]
[392842434,1762035044423,-500.0,0.00036986,8]
[392842435,1762035044431,-502.40884519,0.00036986,8]
[392842436,1762035044440,-500.0,0.00036986,8]
[392842437,1762035044449,-500.0,0.00036986,8]
[392842438,1762035044458,-500.0,0.00036986,8]
[392842439,1762035044467,-500.0,0.00036986,8]
[392842440,1762035044477,-500.0,0.00036986,8]
[392842441,1762035044486,-501.95583404,0.00036986,8]
[392842442,1762035044495,-500.0,0.00036986,8]
[392842443,1762035044504,-367.0269857,0.00036986,2]
[392842444,1762035044514,-502.01396133,0.00036986,8]
[392842445,1762035044523,-503.98143683,0.00036986,8]
[392842446,1762035044532,-529.11725851,0.00036986,8]
[392842447,1762035044542,-500.0,0.00036986,8]
[392842448,1762035044551,-501.56377697,0.00036986,8]
[392842449,1762035044560,-502.25670641,0.00036986,8]
[392842450,1762035044569,-500.0,0.00036986,8]
[392842451,1762035044578,-500.0,0.00036986,8]
[392842452,1762035044587,-500.0,0.00036986,8]
[392842453,1762035044596,-500.0,0.00036986,8]
[392842454,1762035044608,-500.0,0.00036986,8]
[392842455,1762035044616,-502.07475375,0.00036986,8]
[392842456,1762035044626,-500.0,0.00036986,8]
[392842457,1762035044635,-500.0,0.00036986,8]
[392842458,1762035044645,-505.76635963,0.00036986,8]
[392842459,1762035044655,-500.0,0.00036986,8]
[392842460,1762035044664,-508.55662748,0.00036986,8]
[392842461,1762035044674,-500.0,0.00036986,8]
[392842462,1762035044684,-502.62394323,0.00036986,8]
[392842463,1762035044693,-501.47298368,0.00036986,8]
[392842464,1762035044702,-501.94550222,0.00036986,8]
[392842465,1762035044711,-500.0,0.00036986,8]
[392842466,1762035044722,-500.0,0.00036986,8]
[392842467,1762035044731,-501.78144309,0.00036986,8]
[392842468,1762035044740,-500.0,0.00036986,8]
[392842469,1762035044749,-501.45000683,0.00036986,8]
[392842470,1762035044758,-500.0,0.00036986,7]
[392842471,1762035044767,-505.20422378,0.00036986,8]
[392842472,1762035044776,-502.34033204,0.00036986,8]
[392842473,1762035044786,-500.0,0.00036986,8]
[392842474,1762035044795,-500.9774981,0.00036986,8]
[392842475,1762035044804,-504.44996609,0.00036986,8]
[392842476,1762035044813,-500.0,0.00036986,8]
[392842477,1762035044822,-500.0,0.00036986,8]
[392842478,1762035044831,-501.75403448,0.00036986,8]
[392842479,1762035044840,-502.63768313,0.00036986,8]
[392842480,1762035044849,-500.0,0.00036986,8]
[392842481,1762035044858,-509.24763933,0.00036986,8]
[392842482,1762035044871,-500.0,0.00036986,8]
[392842483,1762035044880,-503.06002398,0.00036986,8]
[392842484,1762035044889,-501.0259689,0.00036986,2]
[392842485,1762035044898,-500.0,0.00036986,8]
[392842486,1762035044908,-639.11,0.00036986,8]
[392842487,1762035044917,-500.0,0.00036986,8]
[392842488,1762035044927,-502.14604529,0.00036986,8]
[392842489,1762035044936,-500.0,0.00036986,8]
[392842490,1762035044945,-500.0,0.00036986,8]
[392842491,1762035044956,-500.0,0.00036986,8]
[392842492,1762035044965,-500.0,0.00036986,8]
[392842493,1762035044975,-502.50837423,0.00036986,8]
[392842494,1762035044984,-500.0,0.00036986,8]
[392842495,1762035044995,-502.750341,0.00036986,8]
[392842496,1762035045004,-500.0,0.00036986,8]
[392842497,1762035045012,-503.0323733,0.00036986,8]
[392842498,1762035045022,-500.0,0.00036986,8]
[392842499,1762035045030,-500.0,0.00036986,8]
[392842500,1762035045039,-500.0,0.00036986,8]
[392842501,1762035045049,-259.17618124,0.00036986,8]
[392842502,1762035045059,-503.08790311,0.00036986,8]
[392842503,1762035045067,-503.13744774,0.00036986,8]
[392842504,1762035045076,-500.0,0.00036986,8]
[392842505,1762035045085,-500.0,0.00036986,8]
[392842506,1762035045094,-242.948764,0.00036986,7]